bitfinex/quotes_ETHUSD_20250414
["timestamp","ask_amount","ask_price","bid_price","bid_amount"]
[1744654872226,6.08902,1642.3,1642.0,7.4121352]
[1744654872427,0.05,1642.4,1642.1,6.0896]
[1744654872628,0.05,1642.4,1642.1,7.43978252]
[1744654872831,6.13866,1642.4,1642.1,13.52942252]
[1744654873041,0.05,1642.4,1642.2,6.08936]
[1744654873238,6.13866,1642.4,1642.1,7.43990252]
[1744654873952,0.05,1642.4,1642.2,6.86131]
[1744654874152,6.08916,1642.3,1642.1,1.35018252]
[1744654874772,6.08939,1642.2,1642.0,0.7721]
[1744654875055,6.0899,1642.1,1641.9,6.374072]
[1744654875227,12.17899,1642.2,1642.0,4.0]
[1744654875425,6.89623,1642.3,1642.0,4.0]
[1744654875620,0.05,1642.4,1642.1,6.08976]
[1744654875823,0.05,1642.4,1642.2,6.08926]
[1744654876140,0.05,1642.4,1642.3,6.08902]
[1744654876644,0.05,1642.4,1642.2,12.17849]
[1744654876953,6.13866,1642.4,1642.1,12.97198]
[1744654877163,6.13866,1642.4,1642.0,11.4084552]
[1744654877164,6.08932,1642.3,1642.0,9.762]
[1744654877331,6.08932,1642.3,1642.0,15.85209]
[1744654877659,6.08902,1642.3,1642.0,21.94218]
[1744654878252,6.92746,1642.4,1642.1,6.08969]
[1744654878435,0.05,1642.4,1642.2,6.08926]
[1744654878631,0.05,1642.4,1642.2,7.506086]
[1744654879733,0.05,1642.4,1642.3,6.08902]
[1744654882160,0.05,1642.4,1642.3,10.08902]
[1744654883425,0.05,1642.4,1642.3,13.0432458]
[1744654883651,0.05,1642.4,1642.3,13.8280458]
[1744654883841,0.05,1642.4,1642.3,16.48958298]
[1744654884164,0.05,1642.4,1642.3,16.94496798]
[1744654884365,0.05,1642.4,1642.3,13.99074218]
[1744654885563,0.05,1642.4,1642.3,16.99074218]
[1744654896085,0.05,1642.4,1642.3,12.99074218]
[1744654896262,0.05,1642.4,1642.3,12.20594218]
[1744654897351,0.05,1642.4,1642.2,9.6523518]
[1744654897352,0.05,1642.4,1642.2,0.608926]
[1744654897551,6.13877,1642.4,1642.2,5.759]
[1744654897771,6.08902,1642.3,1642.2,5.759]
[1744654897991,12.22768,1642.4,1642.2,5.759]
[1744654898281,6.08902,1642.3,1642.2,5.759]
[1744654898886,6.89102,1642.3,1642.2,5.759]
[1744654899082,6.89102,1642.3,1642.2,9.759]
[1744654899548,6.09013,1642.0,1641.9,5.759]
[1744654900086,6.09013,1642.0,1641.9,9.759]
[1744654900457,6.85446,1642.1,1641.9,9.759]
[1744654901184,12.94439,1642.1,1641.9,5.759]
[1744654901407,6.85446,1642.1,1641.9,6.943987]
[1744654901754,12.94447,1642.1,1641.9,6.943987]
[1744654902276,6.85446,1642.1,1641.9,6.943987]
[1744654902456,6.09013,1642.0,1641.9,6.943987]
[1744654902655,6.09013,1642.0,1641.9,5.759]
[1744654902890,12.94452,1642.1,1641.9,5.759]
[1744654903990,6.09013,1642.0,1641.9,5.759]
[1744654904891,0.8209,1641.8,1641.5,6.09172]
[1744654905190,0.8209,1641.8,1641.6,4.0]
[1744654905388,6.91184,1641.8,1641.6,5.618357]
[1744654905587,6.09124,1641.7,1641.6,5.618357]
[1744654905788,6.09124,1641.7,1641.6,4.0]
[1744654906890,6.89634,1641.7,1641.6,4.0]
[1744654907490,6.09198,1641.5,1641.4,5.759]
[1744654907796,6.09198,1641.5,1641.4,9.759]
[1744654909195,6.09286,1641.3,1641.1,5.759]
[1744654909391,6.09286,1641.3,1641.2,4.0]
[1744654910774,6.89796,1641.3,1641.2,4.0]
[1744654910970,6.09411,1641.0,1640.8,5.76]
[1744654911174,12.18822,1641.0,1640.9,4.0]
[1744654911702,6.09411,1641.0,1640.9,4.0]
[1744654912407,12.18822,1641.0,1640.8,5.76]
[1744654912609,6.09411,1641.0,1640.8,6.41272]
[1744654912973,6.09421,1640.9,1640.8,5.76]
[1744654913174,6.09421,1640.9,1640.8,9.76]
[1744654913375,6.09421,1640.9,1640.8,4.0]
[1744654914110,12.94002,1641.0,1640.8,4.0]
[1744654915208,0.7582,1641.2,1640.8,4.7989]
[1744654915372,0.7582,1641.2,1640.9,6.57389]
[1744654915578,6.8513,1641.2,1640.9,6.57389]
[1744654915804,6.85271,1640.9,1640.6,53.231]
[1744654916111,6.85271,1640.9,1640.7,4.0]
[1744654916278,6.09458,1640.8,1640.7,4.0]
[1744654916606,6.09495,1640.7,1640.6,5.761]
[1744654916810,6.09458,1640.8,1640.6,5.761]
[1744654917000,6.09495,1640.7,1640.6,9.761]
[1744654917516,6.90785,1640.7,1640.6,5.761]
[1744654919211,6.09543,1640.6,1640.3,5.762]
[1744654920517,6.09543,1640.6,1640.3,11.85835]
[1744654920710,6.86554,1640.9,1640.5,6.09537]
[1744654920898,6.09466,1640.8,1640.4,6.09601]
[1744654921101,6.09536,1640.6,1640.3,5.762]
[1744654921274,12.19094,1640.6,1640.3,5.762]
[1744654921704,6.09574,1640.5,1640.3,5.762]
[1744654921911,6.85966,1640.6,1640.3,5.762]
[1744654922276,6.09622,1640.4,1640.1,0.91605327]
[1744654922479,7.545726,1640.6,1640.2,10.09671]
[1744654922698,0.7643,1640.6,1640.2,10.09666]
[1744654922904,6.09583,1640.5,1640.2,4.0]
[1744654923111,6.09609,1640.4,1640.2,4.0]
[1744654923708,6.09607,1640.4,1640.2,4.0]
[1744654924113,6.09644,1640.3,1640.2,4.0]
[1744654924488,6.09607,1640.4,1640.2,4.0]
[1744654925001,12.19235,1640.4,1640.2,4.0]
[1744654925409,6.09644,1640.3,1640.0,12.67732]
[1744654925610,0.686013,1640.5,1640.1,4.0]
[1744654925779,6.09628,1640.4,1640.1,4.0]
[1744654925983,12.19262,1640.4,1640.1,4.0]
[1744654926183,6.09636,1640.4,1640.1,4.0]
[1744654926596,6.09645,1640.3,1640.1,4.0]
[1744654926797,12.19273,1640.4,1640.1,4.0]
[1744654927613,6.09662,1640.3,1640.1,4.0]
[1744654928633,6.09611,1640.4,1640.1,4.0]
[1744654929115,12.19248,1640.4,1640.1,4.0]
[1744654929433,6.09644,1640.3,1640.1,4.0]
[1744654931020,6.09611,1640.4,1640.1,4.0]
[1744654931021,12.19249,1640.4,1640.1,4.0]
[1744654931443,6.09656,1640.3,1640.1,4.0]
[1744654932833,12.19337,1640.3,1640.1,4.0]
[1744654933040,6.09777,1640.0,1639.8,0.7591]
[1744654933339,6.09867,1639.7,1639.4,17.96431]
[1744654933491,0.7881,1639.9,1639.5,6.0994]
[1744654933492,6.09841,1639.8,1639.5,6.0994]
[1744654933693,6.09841,1639.8,1639.5,12.19867]
[1744654933955,6.09776,1640.0,1639.5,1.22735341]
[1744654934138,6.09731,1640.1,1639.8,6.86718]
[1744654934439,12.19465,1640.1,1639.8,6.86718]
[1744654934586,12.19473,1640.1,1639.8,6.86718]
[1744654934789,6.09759,1640.0,1639.8,0.7689]
[1744654935235,12.19467,1640.1,1639.8,6.8672]
[1744654935433,12.1948,1640.1,1639.8,6.5309]
[1744654935640,6.09731,1640.1,1639.8,6.5309]
[1744654935940,0.7518,1640.2,1639.6,4.0]
[1744654936230,0.7518,1639.8,1639.5,6.0991]
[1744654936391,0.7518,1640.0,1639.5,6.0991]
[1744654936614,6.09804,1639.9,1639.5,6.70927]
[1744654936814,12.19634,1639.9,1639.5,6.70927]
[1744654937031,6.09836,1639.8,1639.6,5.762]
[1744654937249,6.09836,1639.8,1639.5,12.80855]
[1744654937448,6.09836,1639.8,1639.6,5.763]
[1744654937944,12.19634,1639.9,1639.6,5.763]
[1744654938529,6.09834,1639.8,1639.6,5.763]
[1744654939041,6.09804,1639.9,1639.6,11.86197]
[1744654939243,12.19619,1639.9,1639.6,11.86197]
[1744654939715,6.09804,1639.9,1639.6,11.86197]
[1744654939916,6.84943,1640.0,1639.7,6.09857]
[1744654940117,12.94717,1640.0,1639.6,19.817996]
[1744654940327,6.84943,1640.0,1639.7,6.09856]
[1744654940848,12.94715,1640.0,1639.6,19.817986]
[1744654941051,12.94736,1640.0,1639.6,13.719046]
[1744654941254,0.8218,1640.2,1639.7,2.1554046]
[1744654941470,6.0959,1640.5,1640.2,6.09659]
[1744654941683,6.09582,1640.5,1640.2,11.85959]
[1744654941835,6.09613,1640.4,1640.2,5.763]
[1744654942275,12.1924,1640.4,1640.2,5.763]
[1744654942433,6.09613,1640.4,1640.2,5.763]
[1744654942636,12.19236,1640.4,1640.2,5.763]
[1744654943070,6.09613,1640.4,1640.2,5.763]
[1744654943559,12.19237,1640.4,1640.2,5.713]
[1744654943747,6.09644,1640.3,1640.2,5.713]
[1744654946003,6.0957,1640.5,1640.2,11.80965]
[1744654946277,6.09571,1640.5,1640.2,11.80965]
[1744654946650,6.9172,1640.6,1640.3,6.09633]
[1744654946853,3.0,1640.8,1640.2,13.600398]
[1744654946854,6.09575,1640.5,1640.2,13.600398]
[1744654947051,6.095,1640.7,1640.2,7.503678]
[1744654947275,6.85158,1640.4,1640.2,5.713]
[1744654947489,6.09644,1640.3,1640.2,5.713]
[1744654947820,6.09729,1640.1,1639.8,6.5394]
[1744654948107,6.09793,1639.9,1639.8,10.5394]
[1744654948380,6.09793,1639.9,1639.8,9.763]
[1744654948785,6.09758,1640.0,1639.8,9.763]
[1744654948951,12.99674,1640.1,1639.8,9.763]
[1744654949154,6.09756,1640.0,1639.8,9.763]
[1744654949456,6.09756,1640.0,1639.8,5.763]
[1744654949885,1.299674,1640.1,1639.8,11.86118]
[1744654950187,12.19468,1640.1,1639.8,11.86118]
[1744654950477,6.09769,1640.0,1639.8,5.763]
[1744654950677,6.09793,1639.9,1639.8,5.763]
[1744654951053,6.707459,1640.0,1639.8,5.763]
[1744654951250,13.02519,1640.3,1639.9,6.09769]
[1744654951468,6.09693,1640.2,1639.9,6.91899]
[1744654951890,12.1939,1640.2,1639.9,6.91899]
[1744654952063,12.19461,1640.1,1639.9,0.8213]
[1744654952383,6.09767,1640.0,1639.8,9.763]
[1744654952582,12.19463,1640.1,1639.8,9.763]
[1744654952762,13.70951558,1640.1,1639.8,9.763]
[1744654952962,7.61208558,1640.1,1639.8,15.86128]
[1744654953157,13.70950558,1640.1,1639.8,11.86128]
[1744654953351,7.61209558,1640.1,1639.8,5.763]
[1744654953553,1.51488558,1640.1,1639.8,5.763]
[1744654953851,6.09793,1639.9,1639.8,5.763]
[1744654954154,7.397267,1639.9,1639.8,5.763]
[1744654955184,6.09867,1639.7,1639.4,11.86271]
[1744654955351,6.09909,1639.6,1639.5,4.0]
[1744654955554,12.1977,1639.7,1639.5,4.0]
[1744654955953,6.09904,1639.6,1639.5,4.0]
[1744654956164,12.1977,1639.7,1639.4,6.5225]
[1744654956377,6.09867,1639.7,1639.5,4.0]
[1744654956595,12.19754,1639.7,1639.5,4.0]
[1744654957286,6.09904,1639.6,1639.5,4.0]
[1744654957587,7.318424,1639.7,1639.5,4.0]
[1744654958588,6.09838,1639.8,1639.5,4.0]
[1744654958763,1.299337,1639.9,1639.5,4.0]
[1744654959096,0.7977,1640.0,1639.5,10.09941]
[1744654959288,12.19604,1639.9,1639.5,16.19859]
[1744654959485,7.65488558,1640.1,1639.6,3.7614]
[1744654959654,2.9542258,1640.4,1639.9,6.09784]
[1744654959655,6.09658,1640.3,1639.9,6.09784]
[1744654959855,6.86753,1640.4,1640.0,6.09736]
[1744654960057,6.09699,1640.2,1639.9,6.09786]
[1744654960292,6.783263,1640.3,1640.0,6.85895]
[1744654960484,12.19328,1640.3,1640.0,6.85895]
[1744654960659,12.19328,1640.3,1640.0,0.7614]
[1744654960983,6.09718,1640.1,1640.0,0.7614]
[1744654961350,6.09682,1640.2,1640.0,0.7614]
[1744654961790,12.19381,1640.2,1640.0,0.7614]
[1744654962793,6.09682,1640.2,1640.0,0.7614]
[1744654962997,12.19325,1640.3,1640.0,6.85893]
[1744654963164,6.09683,1640.2,1640.0,0.7614]
[1744654963491,12.1938,1640.2,1640.0,0.7614]
[1744654963668,6.09683,1640.2,1640.0,0.7614]
[1744654963864,12.23584,1640.5,1640.2,6.09671]
[1744654964068,6.09584,1640.5,1640.2,6.09681]
[1744654964289,6.09584,1640.5,1640.2,12.19349]
[1744654964492,6.09584,1640.5,1640.2,12.19339]
[1744654964655,6.09584,1640.5,1640.2,6.09668]
[1744654965062,6.09609,1640.4,1640.1,11.86111]
[1744654965262,6.09609,1640.4,1640.1,14.201659]
[1744654965498,6.09609,1640.4,1640.1,20.298729]
[1744654965667,6.09609,1640.4,1640.1,20.298719]
[1744654965878,6.09609,1640.4,1640.1,14.201649]
[1744654966562,6.09609,1640.4,1640.1,20.298729]
[1744654966762,6.09576,1640.5,1640.2,6.0968]
[1744654967080,6.09608,1640.4,1640.2,4.0]
[1744654967271,12.19239,1640.4,1640.2,4.0]
[1744654967590,6.09608,1640.4,1640.2,4.0]
[1744654969500,12.19232,1640.4,1640.2,4.0]
[1744654969667,6.09608,1640.4,1640.2,4.0]
[1744654970189,6.09644,1640.3,1640.2,4.0]
[1744654970398,6.91424,1640.3,1640.2,4.0]
[1744654970921,9.8684658,1640.3,1640.2,4.0]
[1744654971205,6.09681,1640.2,1640.1,4.0]
[1744654972196,6.09718,1640.1,1640.0,5.761]
[1744654972421,7.316579,1640.1,1640.0,5.761]
[1744654972621,6.09885,1639.7,1639.5,5.761]
[1744654972902,6.09775,1640.0,1639.6,6.09883]
[1744654973567,6.09775,1640.0,1639.7,6.09863]
[1744654973768,6.09775,1640.0,1639.6,6.09883]
[1744654973968,6.09805,1639.9,1639.6,6.09883]
[1744654974188,8.1297479,1640.0,1639.6,6.09883]
[1744654974501,8.1297479,1640.0,1639.7,6.09865]
[1744654974870,14.2274979,1640.0,1639.7,6.09865]
[1744654975198,6.09794,1639.9,1639.7,4.0]
[1744654975384,6.0983,1639.8,1639.7,4.0]
[1744654976302,6.0983,1639.8,1639.6,5.761]
[1744654976614,6.09794,1639.9,1639.6,17.95896]
[1744654976799,6.09794,1639.9,1639.6,11.85992]
[1744654977101,6.09764,1640.0,1639.6,11.92088462]
[1744654977302,6.14,1640.4,1640.1,6.09692]
[1744654977487,0.7768,1640.5,1640.1,6.09701]
[1744654977671,6.8726,1640.5,1640.1,6.09718]
[1744654977867,12.96853,1640.5,1640.2,6.09681]
[1744654978069,6.09654,1640.3,1640.0,11.85847]
[1744654978303,6.09692,1640.2,1640.0,5.761]
[1744654978788,0.609654,1640.3,1640.0,5.761]
[1744654978982,6.09617,1640.4,1640.1,6.88971]
[1744654979382,6.09617,1640.4,1640.1,12.98679]
[1744654979594,6.09617,1640.4,1640.1,6.88971]
[1744654980489,12.1925,1640.4,1640.1,0.7927]
[1744654980696,13.48943,1640.4,1640.1,0.7927]
[1744654981094,6.09644,1640.3,1640.1,0.7927]
[1744654981807,7.39308,1640.4,1640.1,6.88988]
[1744654981983,6.09615,1640.4,1640.1,6.88976]
[1744654982187,6.09659,1640.3,1640.1,0.7927]
[1744654982480,6.09694,1640.2,1640.0,5.761]
[1744654983405,9.8269658,1640.5,1640.0,5.761]
[1744654983570,6.09718,1640.1,1640.0,5.761]
[1744654983777,8.11971,1640.1,1640.0,9.761]
[1744654984304,2.02253,1640.1,1640.0,4.0]
[1744654984494,12.2362,1640.4,1640.1,6.09716]
[1744654984682,6.09651,1640.3,1640.0,10.89273]
[1744654985004,6.0963,1640.4,1640.1,17.95507]
[1744654985175,12.19112,1640.6,1640.2,6.09653]
[1744654985371,0.8285,1640.7,1640.3,0.783]
[1744654985576,6.09584,1640.5,1640.3,0.783]
[1744654985777,6.09607,1640.4,1640.3,0.783]
[1744654985992,6.09607,1640.4,1640.1,12.61741]
[1744654986308,6.09607,1640.4,1640.1,18.71443]
[1744654986784,6.09546,1640.6,1640.1,8.791743]
[1744654986979,6.09546,1640.6,1640.3,6.0963]
[1744654987210,6.09571,1640.5,1640.2,6.0967]
[1744654987404,12.19166,1640.5,1640.2,6.0967]
[1744654987605,6.09631,1640.4,1640.1,12.6174]
[1744654987811,6.09631,1640.4,1640.1,18.71445]
[1744654987987,6.09631,1640.4,1640.2,4.0]
[1744654988191,12.19262,1640.4,1640.2,4.0]
[1744654988501,6.09631,1640.4,1640.2,4.0]
[1744654989407,6.09644,1640.3,1640.1,5.761]
[1744654989579,6.09617,1640.4,1640.1,11.85807]
[1744654989782,6.0958,1640.5,1640.2,6.09663]
[1744654989977,6.0958,1640.5,1640.2,12.97274]
[1744654990305,12.19168,1640.5,1640.2,6.87603]
[1744654990679,12.95687,1640.6,1640.2,6.87603]
[1744654990999,12.1916,1640.5,1640.2,6.87603]
[1744654991203,6.09574,1640.5,1640.2,6.87603]
[1744654991373,6.09574,1640.5,1640.2,12.97272]
[1744654991577,6.09574,1640.5,1640.2,6.87603]
[1744654991774,5.0159128,1640.6,1640.1,5.761]
[1744654991974,6.09666,1640.3,1640.2,4.0]
[1744654992695,6.09681,1640.2,1640.1,5.761]
[1744654993295,12.19331,1640.3,1640.1,5.761]
[1744654993691,6.09665,1640.3,1640.1,5.761]
[1744654993899,6.09681,1640.2,1640.1,5.761]
[1744654994419,6.09616,1640.4,1640.1,5.761]
[1744654994624,6.0958,1640.5,1640.1,11.85809]
[1744654994918,12.19169,1640.5,1640.2,6.0967]
[1744654996921,12.19169,1640.5,1640.2,10.0967]
[1744654997421,6.0958,1640.5,1640.2,10.0967]
[1744654997626,12.19164,1640.5,1640.2,10.0967]
[1744654997793,12.19164,1640.5,1640.2,4.0]
[1744654997794,6.09608,1640.4,1640.2,4.0]
[1744654998320,6.0958,1640.5,1640.2,10.09675]
[1744654998497,12.19175,1640.5,1640.2,10.0968]
[1744655000131,12.19175,1640.5,1640.2,15.8538]
[1744655000294,6.0958,1640.5,1640.2,15.85371]
[1744655000491,6.0961,1640.4,1640.2,4.0]
[1744655000699,6.09772,1640.0,1639.8,0.7574]
[1744655001008,6.09772,1640.0,1639.9,4.0]
[1744655001604,12.19473,1640.1,1639.9,4.0]
[1744655002131,12.19461,1640.1,1639.9,4.0]
[1744655003543,6.09727,1640.1,1639.9,4.0]
[1744655004033,6.85943,1640.3,1639.9,11.183298]
[1744655004723,6.09691,1640.2,1639.9,17.281138]
[1744655005437,12.95616,1640.3,1640.0,6.09755]
[1744655006232,12.95616,1640.3,1640.0,10.09755]
[1744655006403,6.09686,1640.2,1640.0,4.0]
[1744655007103,12.95604,1640.3,1640.0,10.09754]
[1744655007305,6.85942,1640.3,1640.0,10.09744]
[1744655007934,12.956,1640.3,1640.0,10.09744]
[1744655008248,6.09681,1640.2,1640.0,10.09744]
[1744655008743,12.95611,1640.3,1640.0,10.09744]
[1744655008911,12.95622,1640.3,1640.0,10.09744]
[1744655009345,2.9542258,1640.4,1640.0,4.0]
[1744655009518,6.09632,1640.4,1640.0,10.09737]
[1744655009723,12.19256,1640.4,1640.1,6.09708]
[1744655009909,8.16238,1640.5,1640.2,6.09672]
[1744655010238,12.96255,1640.5,1640.2,6.09669]
[1744655010409,6.09608,1640.4,1640.1,18.7248]
[1744655010610,6.09608,1640.4,1640.1,18.72477]
[1744655010809,6.09608,1640.4,1640.1,8.9040507]
[1744655011020,6.09608,1640.4,1640.1,12.62774]
[1744655011252,12.19234,1640.4,1640.1,12.62767]
[1744655011410,6.09608,1640.4,1640.1,12.62767]
[1744655011839,6.09608,1640.4,1640.1,12.62766]
[1744655012147,12.1925,1640.4,1640.2,4.0]
[1744655012532,12.1925,1640.4,1640.1,12.62766]
[1744655013645,12.19234,1640.4,1640.1,12.62766]
[1744655014041,0.7708,1640.5,1640.1,6.5306]
[1744655014042,6.09647,1640.3,1640.1,6.5306]
[1744655014811,12.19314,1640.3,1640.1,6.5306]
[1744655015010,6.09618,1640.4,1640.1,6.5306]
[1744655015215,6.86661,1640.5,1640.2,6.09676]
[1744655015550,6.09619,1640.4,1640.1,12.62766]
[1744655015750,6.09619,1640.4,1640.2,4.0]
[1744655017034,6.09619,1640.4,1640.2,10.09681]
[1744655017544,12.96243,1640.5,1640.2,10.09681]
[1744655018139,6.0962,1640.4,1640.2,4.0]
[1744655018544,12.1925,1640.4,1640.2,4.0]
[1744655019051,6.0962,1640.4,1640.2,4.0]
[1744655019351,12.19242,1640.4,1640.2,4.0]
[1744655020350,6.0962,1640.4,1640.2,4.0]
[1744655021455,12.19243,1640.4,1640.2,4.0]
[1744655021663,12.96245,1640.5,1640.2,10.09677]
[1744655021825,6.09609,1640.4,1640.2,4.0]
[1744655022017,12.19231,1640.4,1640.2,4.0]
[1744655025166,6.09609,1640.4,1640.2,4.0]
[1744655025336,12.96239,1640.5,1640.2,10.09674]
[1744655025529,6.86654,1640.5,1640.2,10.09672]
[1744655025732,6.9545,1640.7,1640.2,10.09675]
[1744655025933,6.09581,1640.5,1640.2,4.0]
[1744655026133,6.09609,1640.4,1640.2,9.753]
[1744655026335,0.8145,1641.1,1640.5,6.9245]
[1744655026553,0.8145,1641.1,1640.6,5.753]
[1744655026730,0.8145,1641.1,1640.7,6.09495]
[1744655026935,0.8145,1641.1,1640.8,6.89924]
[1744655027271,6.86602,1641.2,1640.9,6.09411]
[1744655027437,6.09276,1641.3,1640.9,6.09411]
[1744655027643,12.98734,1641.4,1641.0,6.09368]
[1744655027878,6.09285,1641.3,1641.0,12.18738]
[1744655028165,12.98741,1641.4,1641.0,10.09368]
[1744655028371,6.89482,1641.4,1641.1,6.09338]
[1744655028534,6.89482,1641.4,1641.1,0.8101]
[1744655028535,6.09278,1641.3,1641.1,0.8101]
[1744655028737,6.09347,1641.1,1641.0,4.0]
[1744655029349,6.09398,1641.0,1640.6,13.61196258]
[1744655029564,6.09398,1641.0,1640.7,4.0]
[1744655029741,6.09398,1641.0,1640.7,10.09495]
[1744655030470,12.18714,1641.1,1640.7,10.09485]
[1744655030668,12.18719,1641.1,1640.7,10.15578347]
[1744655030976,6.09388,1641.0,1640.7,10.09484]
[1744655031183,6.09388,1641.0,1640.7,4.0]
[1744655031354,6.09425,1640.9,1640.7,4.0]
[1744655031552,6.09388,1641.0,1640.7,4.0]
[1744655032344,12.18801,1641.0,1640.7,4.0]
[1744655032945,6.09388,1641.0,1640.7,4.0]
[1744655033142,6.09388,1641.0,1640.7,10.09483]
[1744655033679,6.09429,1640.9,1640.7,4.0]
[1744655033882,12.18867,1640.9,1640.6,12.65831]
[1744655034276,6.09429,1640.9,1640.6,12.65831]
[1744655034473,6.09473,1640.8,1640.6,5.753]
[1744655035365,8.0888,1640.9,1640.6,11.84832]
[1744655036476,14.18327,1640.9,1640.6,5.753]
[1744655036779,14.18327,1640.9,1640.3,5.752]
[1744655036780,6.09595,1640.5,1640.3,5.752]
[1744655036948,6.09595,1640.5,1640.4,4.0]
[1744655037548,12.19103,1640.6,1640.4,4.0]
[1744655037960,6.09551,1640.6,1640.3,5.752]
[1744655038691,6.09551,1640.6,1640.3,11.84842]
[1744655038978,12.19104,1640.6,1640.3,5.752]
[1744655039146,6.09551,1640.6,1640.3,5.752]
[1744655039342,12.19104,1640.6,1640.3,5.752]
[1744655040057,6.09588,1640.5,1640.3,5.752]
[1744655040446,13.01434,1640.7,1640.3,11.84844]
[1744655040649,6.9193,1640.7,1640.4,0.801]
[1744655040950,6.87433,1640.7,1640.3,11.8483]
[1744655041715,6.87433,1640.7,1640.4,6.09606]
[1744655041976,6.87433,1640.7,1640.3,5.752]
[1744655041977,6.09468,1640.8,1640.5,6.89936]
[1744655042558,6.09429,1640.9,1640.6,6.09526]
[1744655043150,6.09469,1640.8,1640.5,6.8994]
[1744655043381,12.18866,1640.9,1640.6,6.09522]
[1744655043581,6.14,1641.0,1640.5,8.598944]
[1744655043758,6.09471,1640.8,1640.5,8.598944]
[1744655044152,6.09471,1640.8,1640.5,14.694514]
[1744655044475,6.09471,1640.8,1640.5,8.598914]
[1744655044680,6.09471,1640.8,1640.5,14.694484]
[1744655044874,6.09471,1640.8,1640.6,0.8598914]
[1744655046211,1.11315262,1641.3,1640.7,0.7686]
[1744655046508,0.7953,1641.5,1641.4,6.09234]
[1744655046675,1.12315379,1641.8,1641.6,6.09141]
[1744655046871,6.09128,1641.7,1641.3,6.92527]
[1744655047285,6.09175,1641.6,1641.3,0.8326]
[1744655047604,6.09175,1641.6,1641.3,6.9253]
[1744655048204,6.09175,1641.6,1641.3,13.01791]
[1744655048405,6.09175,1641.6,1641.3,6.92521]
[1744655048609,0.7713,1641.5,1641.1,0.7948]
[1744655048807,6.09273,1641.3,1641.2,4.0]
[1744655048971,6.09239,1641.4,1641.2,4.0]
[1744655049174,0.7713,1641.5,1641.2,4.0]
[1744655049175,6.86344,1641.5,1641.2,4.0]
[1744655049470,6.0917,1641.6,1641.2,6.88774]
[1744655049674,6.09201,1641.5,1641.2,6.88774]
[1744655049877,6.09201,1641.5,1641.2,7.576514]
[1744655051008,6.09255,1641.4,1641.0,6.85079]
[1744655051185,6.09255,1641.4,1641.0,12.94448]
[1744655051385,12.18513,1641.4,1641.0,12.94448]
[1744655051580,6.09274,1641.3,1641.0,0.7571]
[1744655051896,6.09301,1641.3,1640.9,17.93922]
[1744655052097,6.09301,1641.3,1641.0,6.09383]
[1744655053105,12.1859,1641.3,1641.0,6.09383]
[1744655053308,6.09289,1641.3,1641.1,4.0]
[1744655053511,12.18583,1641.3,1641.1,4.0]
[1744655053677,6.09289,1641.3,1641.1,4.0]
[1744655054077,6.09289,1641.3,1641.0,6.09383]
[1744655054707,6.09323,1641.2,1640.9,5.751]
[1744655054895,6.09323,1641.2,1641.0,4.0]
[1744655055098,6.09347,1641.1,1641.0,4.0]
[1744655056598,6.09347,1641.1,1640.9,5.751]
[1744655058618,12.1865,1641.2,1640.9,5.751]
[1744655058916,6.09322,1641.2,1640.9,11.84511]
[1744655059080,6.09237,1641.4,1641.1,6.09336]
[1744655059384,13.01906,1641.5,1641.1,6.09336]
[1744655059596,19.11136,1641.5,1641.1,6.09335]
[1744655059790,6.87778,1641.9,1641.6,6.09161]
[1744655060015,6.09088,1641.8,1641.5,6.09188]
[1744655060211,6.927,1641.9,1641.4,5.744]
[1744655060409,6.09138,1641.7,1641.4,11.83628]
[1744655060616,6.09101,1641.8,1641.5,6.84639]
[1744655060796,6.09096,1641.8,1641.5,0.7547]
[1744655060994,6.09138,1641.7,1641.4,11.83634]
[1744655061200,6.09138,1641.7,1641.4,19.800172]
[1744655061547,6.09138,1641.7,1641.4,19.800082]
[1744655061840,6.09138,1641.7,1641.4,13.707742]
[1744655062139,12.18282,1641.7,1641.4,13.707742]
[1744655062627,6.09138,1641.7,1641.4,13.707742]
[1744655062831,6.09096,1641.8,1641.4,13.707692]
[1744655063031,12.18203,1641.8,1641.5,6.09196]
[1744655063209,6.09096,1641.8,1641.4,13.707692]
[1744655063401,6.09124,1641.7,1641.5,4.0]
[1744655064596,6.09161,1641.6,1641.4,5.744]
[1744655064802,12.18339,1641.6,1641.4,5.744]
[1744655064997,6.09161,1641.6,1641.4,5.744]
[1744655066519,12.18274,1641.7,1641.4,11.83624]
[1744655066703,6.09168,1641.6,1641.4,5.744]
[1744655067733,6.09134,1641.7,1641.4,5.744]
[1744655067906,12.18217,1641.8,1641.4,13.098451]
[1744655068110,6.09144,1641.7,1641.4,7.006251]
[1744655068334,6.09188,1641.6,1641.4,5.744]
[1744655068659,12.18365,1641.6,1641.4,5.744]
[1744655068836,6.09177,1641.6,1641.4,5.744]
[1744655069715,12.18361,1641.6,1641.4,5.744]
[1744655070329,6.09135,1641.7,1641.4,5.744]
[1744655070536,6.09103,1641.8,1641.5,6.09196]